Cogmind - Beta 13 @@@ ROGUE MODE // 2024.05.23 @ 15:24:57 Player: DabbyDB Result: Destroyed by H-61 Shepherd with Heavy Assault Cannon Performance ------------- Evolutions (2) 1000 Regions Visited (5) 1000 Robots Destroyed (62) 310 Value Destroyed (1649) 1649 Prototype IDs (32) 640 Alien Tech Used (0) 0 Bonus (1048) 1048 TOTAL SCORE: 5647 Bonus ------- High Alert Combat Kills 266 Follower Combat Kills 482 Aligned with FarCom 300 Cogmind --------- Core Integrity 0/550 Matter 253/300 Energy 47/265 System Corruption 0% Temperature Danger (404) Movement Rolling (130) Ox2 Location -8/Materials Parts ------- > --- POWER (1) -------- Improved Ion Engine > --- PROPULSION (2) --- Compact Wheel > --- UTILITY (4) ------ Large Storage Unit Visual Processing Unit Improved Targeting Computer Improved Light Armor Plating > --- WEAPON (4) ------- Heavy Particle Cannon Heavy Particle Cannon Ion Cannon > --- INVENTORY (15) --- Wheel Wheel Improved Heat Sink Large Storage Unit High-capacity Matter Pod (200) Improved Signal Interpreter Seismic Detector Heavy Armor Plating Heavy Particle Gun Peak State ------------ > --- POWER ------------ Nuclear Core > --- PROPULSION ------- Compact Wheel Compact Wheel > --- UTILITY ---------- Large Storage Unit Visual Processing Unit Improved Terrain Scan Processor Improved Targeting Computer > --- WEAPON ----------- Heavy Particle Gun Heavy Particle Cannon Ion Cannon Assault Cannon > --- INVENTORY -------- Ion Engine Wheel Compact Wheel Improved Heat Sink Large Storage Unit High-capacity Matter Pod Improved Signal Interpreter Seismic Detector Light Armor Plating Light Armor Plating Improved EM Shotgun Autogun Minigun Grenade Launcher Deploy-a-Sentry [Rating: 29] Favorites ----------- Power Ion Engine Engine Ion Engine Power Core Nuclear Core Propulsion Compact Wheel Wheel Compact Wheel Utility Visual Processing Unit Device Seismic Detector Storage Medium Storage Unit Processor Visual Processing Unit Protection Improved Light Armor Plating Weapon Assault Rifle Energy Gun EM Pulse Gun Energy Cannon Heavy Particle Cannon Ballistic Gun Assault Rifle Ballistic Cannon Assault Cannon Launcher Grenade Launcher Build | -11 -10 -10 -10 -9 -8 ------- Run | Yrd Mat Min Exi Min Mat Slots Evolved 4 | . . . . . 4 Power . | . . . . . . Propulsion . | . . . . . . Utility 2 | . . . . . 2 Weapon 2 | . . . . . 2 Parts Attached 66 | 7 16 . . . 43 Power 9 | 1 2 . . . 6 Engine 5 | 1 2 . . . 2 Core 4 | . . . . . 4 Reactor . | . . . . . . Propulsion 9 | 2 4 . . . 3 Treads . | . . . . . . Leg . | . . . . . . Wheel 9 | 2 4 . . . 3 Hover . | . . . . . . Flight . | . . . . . . Utility 10 | 2 3 . . . 5 Device 3 | 1 1 . . . 1 Storage 3 | 1 1 . . . 1 Processor 3 | . 1 . . . 2 Hackware . | . . . . . . Protection 1 | . . . . . 1 Artifact . | . . . . . . Weapon 38 | 2 7 . . . 29 Energy Gun 10 | 1 3 . . . 6 Energy Cannon 9 | . 1 . . . 8 Ballistic Gun 14 | 1 3 . . . 10 Ballistic Cannon 1 | . . . . . 1 Launcher 4 | . . . . . 4 Special Weapon . | . . . . . . Impact Weapon . | . . . . . . Slashing Weapon . | . . . . . . Piercing Weapon . | . . . . . . Special Melee Weapon . | . . . . . . Unidentified Prototypes 1 | . . . . . 1 Parts Lost 20 | . 4 . . . 16 Power 4 | . 1 . . . 3 Propulsion 5 | . 2 . . . 3 Utility . | . . . . . . Weapon 11 | . 1 . . . 10 Highest Loss Streak 5 | . 2 . . . 5 To Critical Strikes . | . . . . . . Average Slot Usage (%) 98 | . 95 100 100 100 99 Engine 7 | . 14 14 14 14 1 Core 4 | . . . . . 7 Wheel 21 | . 24 28 28 28 17 Device 1 | . 2 . . . 1 Storage 11 | . 14 14 14 14 9 Processor 20 | . 11 14 14 14 25 Energy Gun 10 | . 10 14 14 14 7 Energy Cannon 5 | . 1 . . . 10 Ballistic Gun 15 | . 15 14 14 14 16 Naked Turns . | . . . . . . Heaviest Build 48 | 12 21 19 19 19 48 Greatest Support 32 | 20 26 26 26 26 32 Greatest Overweight (x) 5 | . 5 . . . 2 Average Overweight (x) . | . . . . . . Largest Inventory Capacity 15 | 8 10 10 10 10 15 Average Capacity 11 | 7 9 10 10 10 13 Most Carried 15 | 7 10 9 10 10 15 Average Carried 10 | 3 8 8 9 10 11 Final Capacity 15 | 8 10 10 10 10 15 Final Carried 10 | 7 9 9 10 10 10 Class Distribution -------------------- 47% | Gunner 45% | Mutant 5% | Scavenger-Gunner Dominant Class ---------------- Mutant | -10/Materials Mutant | -10/Mines Mutant | -10/Exiles Mutant | -9/Mines Gunner | -8/Materials Resources | -11 -10 -10 -10 -9 -8 ----------- Run | Yrd Mat Min Exi Min Mat Matter Collected 1690 | 268 385 117 . 34 886 Remotely 83 | 83 . . . . . Salvage Created 2146 | 55 312 . 30 87 1662 Parts 138 | 3 23 . 1 8 103 Haulers Intercepted 3 | . 1 . . . 2 Recyclers Shooed 1 | . . . . . 1 Parts Field Recycled . | . . . . . . Retrieved Matter . | . . . . . . Parts Self-Destructed . | . . . . . . Prevented . | . . . . . . Kills | -11 -10 -10 -10 -9 -8 ------- Run | Yrd Mat Min Exi Min Mat Combat Hostiles Destroyed 44 | . 8 . . 3 33 Guns 25 | . 5 . . 3 17 Cannons 9 | . . . . . 9 AOE 8 | . 3 . . . 5 Classes Destroyed 13 | 1 4 . 1 1 6 Worker 1 | . . . . . 1 Builder 3 | . . . . 2 1 Hauler 3 | . 1 . . . 2 Recycler 1 | 1 . . . . . Operator 2 | . . . . . 2 Watcher 7 | . 3 . . . 4 Swarmer 16 | . 5 . . 3 8 Grunt 19 | . 3 . . . 16 Brawler 1 | . . . . . 1 Duelist 1 | . . . . . 1 Protector 1 | . . . . . 1 Sentry 6 | . . . . . 6 Zionite 1 | . . . 1 . . Best Kill Streak 5 | 1 3 . 1 3 5 Combat Bots Only 5 | . 3 . . 3 5 Max Kills in Single Turn 2 | 1 2 . 1 1 2 Gunslinging . | . . . . . . Exploded 2 | . 2 . . . 2 Melee . | . . . . . . Uniques/NPCs Destroyed . | . . . . . . Combat | -11 -10 -10 -10 -9 -8 -------- Run | Yrd Mat Min Exi Min Mat Hostile Shots Fired 256 | . 44 . 2 3 207 Missed 62 | . 12 . 1 . 49 Damage Taken 3080 | . 429 . 11 20 2620 Core 686 | . 93 . . . 593 Absorbed by Shields . | . . . . . . Regen/Repaired (Parts) 139 | . 28 . . . 111 Core Remaining (%) 81 | 100 . . . 62 . Volleys Fired 110 | 1 24 4 . 8 73 Largest 4 | 2 2 2 . 2 4 Hottest 235 | 70 60 60 . 60 235 Shots Fired 331 | 2 48 8 1 16 256 Gun 248 | 2 48 8 1 16 173 Cannon 74 | . . . . . 74 Launcher 9 | . . . . . 9 Special . | . . . . . . Kinetic 179 | 1 34 4 1 7 132 Thermal 54 | 1 . . . . 53 Explosive 9 | . . . . . 9 Electromagnetic 89 | . 14 4 . 9 62 Robot Hit Streak 21 | 2 7 . 6 12 21 Robot Miss Streak 4 | . 4 . . 2 3 Penetration Max . | . . . . . . Secondary Targets 3 | . 1 . . . 2 Max Gunslinging Chain 1 | . 1 . . . 1 Shots Hit Robots 191 | 2 28 . 1 9 151 Core Hits 100 | 2 16 . 1 4 77 Critical Kills 2 | . . . . . 2 Critical Parts Destroyed 1 | . . . . . 1 Critical Strikes 5 | . . . . . 5 Burn 1 | . . . . . 1 Meltdown 2 | . . . . . 2 Destroy 1 | . . . . . 1 Blast 1 | . . . . . 1 Melee Attacks . | . . . . . . Impact . | . . . . . . Slashing . | . . . . . . Piercing . | . . . . . . Sneak Attacks . | . . . . . . Combat Hostiles . | . . . . . . Follow-up Attacks . | . . . . . . Damage Inflicted 4220 | 22 568 . 11 114 3505 Guns 2140 | 22 345 . 11 114 1648 Cannons 1227 | . . . . . 1227 Explosions 853 | . 223 . . . 630 Melee . | . . . . . . Ramming . | . . . . . . Kinetic 1515 | 10 220 . 11 25 1249 Thermal 1074 | 12 223 . . . 839 Explosive 602 | . . . . . 602 Electromagnetic 1029 | . 125 . . 89 815 Impact . | . . . . . . Slashing . | . . . . . . Piercing . | . . . . . . Highest Corruption 1 | . 1 1 1 1 . Average Corruption 1 | . 1 1 1 1 . Corruption Purged . | . . . . . . Corruption Blocked . | . . . . . . Effects 15 | . 1 3 7 4 . Message Errors 7 | . 1 . 4 2 . Matter Fused 1 | . . . 1 . . Energy Discharges 3 | . . 3 . . . Data Loss (minor) 1 | . . . 1 . . Misfires 2 | . . . 1 1 . Weapon Failures 1 | . . . . 1 . Overload Shots . | . . . . . . Overflow Damage 62 | . 18 . . . 44 Projectiles 7 | . . . . . 7 Explosions 55 | . 18 . . . 37 Melee . | . . . . . . Knockbacks 6 | . . . . . 6 Impact . | . . . . . . Kinetic 4 | . . . . . 4 Secondary 2 | . . . . . 2 Self-Inflicted Damage 180 | . 70 . . . 110 Shots 6 | . 3 . . . 3 Rammed . | . . . . . . Targets Rammed . | . . . . . . Kicked . | . . . . . . Crushed . | . . . . . . Highest Temperature 439 | 30 24 20 . . 439 Average Temperature 136 | 18 10 20 . . 148 Received Heat Transfer 938 | . 72 . 20 . 846 Effects 11 | . . . . . 11 Shutdowns 2 | . . . . . 2 Energy Bleed 1 | . . . . . 1 Interference 4 | . . . . . 4 Damage (major) 4 | . . . . . 4 Siege Activations . | . . . . . . Robots Corrupted . | . . . . . . Combat Hostiles . | . . . . . . Parts Fried 6 | . 1 . . 2 3 Impact Corruptions . | . . . . . . Robots Melted 2 | . . . . . 2 Combat Hostiles 2 | . . . . . 2 Parts Melted 1 | . . . . . 1 Heat Transferred 1774 | 37 400 . . . 1337 Parts Sabotaged . | . . . . . . Parts Stolen . | . . . . . . Parts Stripped . | . . . . . . Power Chain Reactions 4 | . 3 . . . 1 Alert | -11 -10 -10 -10 -9 -8 ------- Run | Yrd Mat Min Exi Min Mat Peak Influence 873 | 5 227 19 . 75 873 Initial 19 | . 3 19 . . 1 Average 222 | 1 73 19 . 48 329 Maximum Alert Level 3 | . 1 . . . 3 Low Security (%) 58 | 100 97 100 . 100 32 Level 1 22 | . 2 . . . 35 Level 2 14 | . . . . . 22 Level 3 5 | . . . . . 8 Level 4 . | . . . . . . Level 5 . | . . . . . . High Security . | . . . . . . Max Security . | . . . . . . Sterilizations 1 | . . . . . 1 Squads Dispatched 15 | . 1 1 . . 13 Investigation 7 | . . 1 . . 6 Extermination . | . . . . . . Reinforcement 4 | . 1 . . . 3 Assault 4 | . . . . . 4 Garrison . | . . . . . . Intercept . | . . . . . . Searches Triggered . | . . . . . . Construction Impeded 1 | . . . . . 1 Haulers Reinforced . | . . . . . . Active Scanning Responses . | . . . . . . Cargo Convoy Interrupts . | . . . . . . Stealth | -11 -10 -10 -10 -9 -8 --------- Run | Yrd Mat Min Exi Min Mat Distress Signals 3 | . 1 . . . 2 Communications Jammed . | . . . . . . Distress Signals . | . . . . . . Times Spotted 101 | . 14 1 7 3 76 Peak Tracking Total 11 | . 4 . 9 3 11 Tactical Retreats 7 | . 1 . . . 6 Traps | -11 -10 -10 -10 -9 -8 ------- Run | Yrd Mat Min Exi Min Mat Traps Triggered 3 | . 2 . . . 1 Indirectly . | . . . . . . Trap Hack Attempts . | . . . . . . Triggered . | . . . . . . Disarmed . | . . . . . . Reprogrammed . | . . . . . . Reused . | . . . . . . Traps Extracted . | . . . . . . Installed . | . . . . . . Triggered . | . . . . . . Machines | -11 -10 -10 -10 -9 -8 ---------- Run | Yrd Mat Min Exi Min Mat Machines Disabled 2 | . 1 . . . 1 Max in Single Turn 1 | . 1 . . . 1 Garrison Access 1 | . . . . . 1 Machines Repaired . | . . . . . . Machines Dismantled . | . . . . . . Machines Sabotaged . | . . . . . . Overloaded Fab Kills . | . . . . . . Hacking | -11 -10 -10 -10 -9 -8 --------- Run | Yrd Mat Min Exi Min Mat Machines Accessed 27 | . 8 1 5 1 12 Terminals 17 | . 7 . . 1 9 Fabricators . | . . . . . . Repair Stations 2 | . 1 . . . 1 Recycling Units . | . . . . . . Scanalyzers 1 | . . . . . 1 Garrison Access 1 | . . . . . 1 Total Hacks 119 | . 24 1 50 3 41 Successful 94 | . 14 1 50 1 28 Failed 25 | . 10 . . 2 13 Catastrophic . | . . . . . . Database Lockouts . | . . . . . . Manual 45 | . 14 . 8 3 20 Terminals 56 | . 21 . . 3 32 Fabricators . | . . . . . . Repair Stations 5 | . 3 . . . 2 Recycling Units . | . . . . . . Scanalyzers 6 | . . . . . 6 Garrison Access 1 | . . . . . 1 Terminal Hacks 69 | . 6 1 50 . 12 Record 50 | . . . 49 . 1 Prototype ID Bank 4 | . 2 . . . 2 Open Door 1 | . . 1 . . . Scanalyzer Index 1 | . . . . . 1 Alert Level 5 | . 1 . . . 4 Unreport Threat 1 | . . . . . 1 Locate Traps 1 | . 1 . . . . Hauler Manifests 3 | . 1 . . . 2 Registered Components 1 | . 1 . . . . Zone Layout 1 | . . . . . 1 Derelict Proto ID Bank 1 | . . . 1 . . Fabricator Hacks . | . . . . . . Repair Station Hacks 5 | . 3 . . . 2 Scan Component 3 | . 2 . . . 1 Repair 2 | . 1 . . . 1 Recycling Unit Hacks . | . . . . . . Scanalyzer 5 | . . . . . 5 Insert Component 2 | . . . . . 2 Analyze 3 | . . . . . 3 Garrison Access Hacks 1 | . . . . . 1 Seal Access 1 | . . . . . 1 Unauthorized Hacks 13 | . 5 . . 1 7 Terminals 13 | . 5 . . 1 7 Botnet 13 | . 5 . . 1 7 Fabricators . | . . . . . . Repair Stations . | . . . . . . Recycling Units . | . . . . . . Scanalyzers . | . . . . . . Garrison Access . | . . . . . . Data Cores Recovered 2 | . . . . . 2 Used 2 | . . . . . 2 Hacking Detections 17 | . 6 . . . 11 Full Trace Events 9 | . 1 . . . 8 Feedback Events . | . . . . . . Feedback Blocked . | . . . . . . Robot Schematics Acquired . | . . . . . . Robots Built . | . . . . . . Authchips . | . . . . . . Time . | . . . . . . Total Robot Build Rating . | . . . . . . Part Schematics Acquired 2 | . . . . . 2 Parts Built . | . . . . . . Authchips . | . . . . . . Time . | . . . . . . Total Part Build Rating . | . . . . . . Parts Repaired 2 | . 1 . . . 1 Time 64 | . 26 . . . 38 Parts Recycled . | . . . . . . Recycled Matter . | . . . . . . Retrieved Matter . | . . . . . . Retrieved Components . | . . . . . . Parts Scanalyzed 2 | . . . . . 2 Part Schematics Acquired 2 | . . . . . 2 Parts Damaged . | . . . . . . Bothacking | -11 -10 -10 -10 -9 -8 ------------ Run | Yrd Mat Min Exi Min Mat Used RIF Installer . | . . . . . . Robots Hacked . | . . . . . . Non-combat . | . . . . . . Combat . | . . . . . . Robot Hacks Applied . | . . . . . . Relay Couplers Released . | . . . . . . Fabnet Peak Effective % . | . . . . . . Robots Rewired . | . . . . . . Allies Hacked . | . . . . . . Hacks Repelled . | . . . . . . Allies | -11 -10 -10 -10 -9 -8 -------- Run | Yrd Mat Min Exi Min Mat Total Allies . | . . . . . . Largest Group . | . . . . . . Highest-Rated Group . | . . . . . . Highest-Rated Ally . | . . . . . . Total Orders . | . . . . . . Ally Attacks 35 | . . . . . 35 Total Damage 1830 | . . . . . 1830 Kills 19 | . . . . . 19 Allies Corrupted . | . . . . . . Allies Melted . | . . . . . . Turrets Deployed 2 | . . . . . 2 Intel | -11 -10 -10 -10 -9 -8 ------- Run | Yrd Mat Min Exi Min Mat Robot Analysis Total . | . . . . . . Derelict Logs Recovered 2 | . . 1 . 1 . Drone Launches . | . . . . . . Drone Recoveries . | . . . . . . Exploration | -11 -10 -10 -10 -9 -8 ------------- Run | Yrd Mat Min Exi Min Mat Turns Passed 4443 | 51 669 305 480 510 2428 Spaces Moved 3481 | 39 564 287 531 532 1528 Core 4 | 2 2 . . . . Treads . | . . . . . . Legs . | . . . . . . Wheels 3477 | 37 562 287 531 532 1528 Hover . | . . . . . . Flight . | . . . . . . Fastest Speed 50 | 50 80 90 90 90 90 Average Speed 98 | 78 89 90 90 90 109 Slowest Speed 300 | 80 300 90 90 90 130 Overloaded Moves . | . . . . . . Propulsion Burnouts . | . . . . . . Robots Hopped 2 | . . . . . 2 Cave-ins Triggered . | . . . . . . Exploration Rate (%) 72 | 3 90 64 93 97 86 Regions Visited 5 Branch Regions 3 Pre-discovered Areas 3 | . . 2 1 . . Known Exits Taken . | . . . . . . Unknown Exits Taken 5 | 1 1 1 1 1 . Scrap Searched 2 | . . . . 2 . Spaces Dug . | . . . . . . Terrain Destroyed 81 | . 7 . . . 74 Melee . | . . . . . . Projectile 11 | . . . . . 11 AOE 70 | . 7 . . . 63 Terrain Rammed . | . . . . . . Walls Destroyed . | . . . . . . Machines Disabled . | . . . . . . Actions | -11 -10 -10 -10 -9 -8 --------- Run | Yrd Mat Min Exi Min Mat Total 4259 | 54 676 326 533 547 2123 Wait 526 | . 53 34 . 6 433 Move 3472 | 38 563 286 530 531 1524 Hop 2 | . . . . . 2 Pick Up 48 | 8 11 1 2 1 25 Fast Attach 19 | 6 5 . . . 8 Attach 22 | 1 4 . . . 17 Detach 3 | . . . . . 3 Swap 25 | . 7 . . . 18 Drop 32 | . 9 1 1 1 20 Fire 110 | 1 24 4 . 8 73 Melee . | . . . . . . Ram . | . . . . . . Kick . | . . . . . . Crush . | . . . . . . Escape Stasis . | . . . . . . Rewire . | . . . . . . Trap . | . . . . . . Miscellaneous . | . . . . . . Route ------- -11/Scrapyard -10/Materials (discovered 5 exits: [*Mat x3] / *Min x2) -10/Mines -10/Exiles (discovered 2 exits: *Min x2) -9/Mines (discovered 2 exits: *Mat x2) -8/Materials (discovered 3 exits: [*Fac x2] / [*Sto]) History --------- Turn | Location | Event 11 | -11/Scrapyard | Discovered new exit (range 15) 52 | -11/Scrapyard | Entered Materials 94 | -10/Materials | Discovered new exit (range 10) 215 | -10/Materials | Discovered new exit (range 15) 308 | -10/Materials | Build established: Mutant 321 | -10/Materials | Discovered new exit (range 18) 392 | -10/Materials | Discovered new exit (range 17) 412 | -10/Materials | Discovered new exit (range 18) 624 | -10/Materials | Repaired Com. Wheel? 721 | -10/Materials | Entered Mines 839 | -10/Mines | Learned location of Storage (-8) 923 | -10/Mines | Learned location of Recycling (-8) 937 | -10/Mines | Met a Derelict shopkeep closing up shop 1022 | -10/Mines | Deemed a non-threat by the Exiles lab entrance 1023 | -10/Mines | Discovered new exit (range 5) 1026 | -10/Mines | Entered Exiles 1042 | -10/Exiles | Discovered new exit (range 15) 1053 | -10/Exiles | Met 8R-AWN 1072 | -10/Exiles | Met EX-HEX 1108 | -10/Exiles | Met EX-DEC 1119 | -10/Exiles | Learned location of Zion (-7) 1205 | -10/Exiles | Visited The Gauntlet 1324 | -10/Exiles | Met EX-BIN 1348 | -10/Exiles | Aligned with FarCom system 1349 | -10/Exiles | Given EX-Vault access code 1396 | -10/Exiles | Opened EX-Vault 1401 | -10/Exiles | Found Deploy-a-Sentry 1403 | -10/Exiles | Found Deploy-a-Sentry 1427 | -10/Exiles | Warned to stay clear of 0b10 Research branches 1467 | -10/Exiles | Attacked by the Exiles 1498 | -10/Exiles | Discovered new exit (range 11) 1506 | -10/Exiles | Left Exiles lab with Deploy-a-Sentry 1506 | -10/Exiles | Entered Mines 1681 | -9/Mines | Discovered new exit (range 12) 1869 | -9/Mines | Learned Materials terminal intel 1978 | -9/Mines | Discovered new exit (range 15) 2016 | -9/Mines | Entered Materials 2016 | -8/Materials | Evolved 4 slots: Utility x2, Weapon x2 2017 | -8/Materials | Loaded intel: 12 terminal locations 2379 | -8/Materials | Build established: Gunner 2524 | -8/Materials | Discovered new exit (range 13) 2525 | -8/Materials | Discovered new exit (range 16) 2601 | -8/Materials | Lost 3 parts (3w) 2849 | -8/Materials | DAS Turret deployed 3258 | -8/Materials | Discovered new exit (range 8) 3790 | -8/Materials | Repaired Hvy. Particle Cannon? 3976 | -8/Materials | Core integrity fell below 50% 4016 | -8/Materials | First assault squad dispatched 4060 | -8/Materials | DAS Turret deployed 4416 | -8/Materials | Core integrity fell below 20% 4444 | -8/Materials | Sterilization system engaged 4444 | -8/Materials | Non-combat units ordered to evacuate 4444 | -8/Materials | Destroyed by H-61 Shepherd with Heavy Assault Cannon Last Messages --------------- 04426_ Grenade Launcher destroyed. 04427_ Discarded Imp. Terrain Scan Processor. 04427_ L-31 Rogue destroyed. 04431_ G-50 Soldier destroyed. 04431_ Repair Station disabled. 04431_ Backup Power I tumbles out of repair station. 04433_ Knocked back. 04435_ L-31 Rogue destroyed. 04435_ Knocked back. 04436_ Acquired 9 matter. 04437_ Minigun destroyed. 04439_ Slug penetrates Repair Station. 04439_ Backup Propulsion I tumbles out of repair station. 04439_ Backup Power I tumbles out of repair station. 04439_ Wheel destroyed. 04439_ Knocked back. 04441_ Overheating: Energy bleed (-8). 04444_ ALERT: Persistent threat exposed, engaging Materials sterilization system. 04444_ ALERT: All non-combat units evacuate. Map ----- +----------------------------------------------------+ | ""%= [# ## #???????????? | | # S""!= # ## """ #???????????? | | # "" # ## """ #???????????? | | ########## ## """ #???????????? | | ????????# # ]#???????????? | | ????????# # """ #???????????? | | ????????# + """ !#???????????? | | ????????# # """ #???????????? | | ????????# # #???????????? | | ????????## ###########???????????? | | ?????????# #! #??????????????? | | ?????????# # "" #??????????????? | | ?????????+ + "G #??????????????? | | ?????????# #! "" %#??????????????? | | ?????????# # #??????????????? | | ?????????# # #??????????????? | | ??######## ######/#??????????????? | | ### T / !# #????# #??????????????? | | + # #????# #??????????????? | | # """" + #????# #??????????????? | | # """" # #????# #??????????????? | | + """" # #????# #??????????????? | | # # ##???# #??????????????? | | ######## ?## ########???????? | | < # # """ %#???????? | | # "R*@ #???????? | | ; r%= * * #???????? | | H%[%i%*= #???????? | | ################;;!%![ % #???????? | | #??????????????######= ] #???????? | | #???????????????????#; ####???????? | | #???????????????????#####??????????? | | #??????????????????????????????????? | | #??????????????????????????????????? | | | | | | | | | | | | | | | | | | | | | | | | | | | | | | | | | +----------------------------------------------------+ Best States ------------- Heat Dissipation 31 Energy Generation 14 Energy Capacity 265 Matter Stores 300 Matter Capacity 300 Sight Range 18 Terrain Scan Range 14 Terrain Scan Density 110 Armor Coverage 150 Evasion (%) 44 Targeting Accuracy 6 Item Schematics ----------------- Shock Rifle | -8/Materials | Scanalyzed Hvy. Particle Cannon | -8/Materials | Scanalyzed Robot Schematics ------------------ None Fabricated ------------ Nothing Alien Tech Used ----------------- None Achievements -------------- Let's See Who's Tougher Quantum Hacking Challenges ------------ None Game ------ Seed SeismicMetafiberSink Manual? 0 Play Time 03:11:28 Cumulative 12.7 hours Start 2024.05.20 @ 13:14:05 End 2024.05.23 @ 15:24:57 Sessions 9 Manual Loads 0 Difficulty Rogue Special Mode None Game No. 5 Rogue 5 Adventurer 0 Explorer 0 Win Type - Total 0 Types 0/0/0/0/0/0/0/0/0 Lore% 11 Gallery% 10 Achievement% 11 Wizard Run 0 Options --------- Layout 2 ASCII 1 Keyboard 1 Movement Numpad Keybinds 0 Fullscreen 0 Font 28/SmallcapsGlow Map View 59x48 Zoom Use 0% Tactical HUD 1 Map Filters NONE Filters NONE Steam 1 RUN: 7451da02-84fc-47bf-a450-e22a537b7c02